fUSD/lending_fUSD_20251003
["ID","MTS","AMOUNT","RATE_DAILY","PERIOD"]
[388937308,1759525832751,-500.0,0.00016977,2]
[388937309,1759525832761,-500.0,0.00016977,2]
[388937310,1759525832770,-500.0,0.00016977,2]
[388937311,1759525832780,-500.0,0.00016977,2]
[388937312,1759525832790,-1489.73748515,0.00016978,5]
[388937313,1759525832799,-112779.950634,0.00016979,2]
[388937314,1759525832808,-150.0,0.0001699,2]
[388937315,1759525832817,-150.0,0.0001699,2]
[388937316,1759525832827,-150.0,0.0001699,2]
[388937317,1759525832836,-500.0,0.0001699,2]
[388937318,1759525832845,-500.0,0.0001699,2]
[388937319,1759525832855,-150.0,0.0001699,2]
[388937320,1759525832864,-500.0,0.0001699,2]
[388937321,1759525832874,-150.0,0.0001699,2]
[388937322,1759525832884,-500.0,0.0001699,2]
[388937323,1759525832893,-150.0,0.0001699,2]
[388937324,1759525832902,-150.0,0.0001699,2]
[388937325,1759525832911,-150.70199025,0.0001699,2]
[388937326,1759525832920,-150.0,0.0001699,2]
[388937327,1759525832930,-150.0,0.0001699,2]
[388937328,1759525832939,-150.0,0.0001699,2]
[388937329,1759525832948,-500.0,0.0001699,2]
[388937330,1759525832957,-150.0,0.0001699,2]
[388937331,1759525832967,-151.72381577,0.0001699,2]
[388937332,1759525832976,-150.0,0.0001699,2]
[388937333,1759525832986,-500.0,0.0001699,2]
[388937334,1759525832995,-500.0,0.0001699,2]
[388937335,1759525833004,-150.47912147,0.0001699,2]
[388937336,1759525833013,-500.0,0.0001699,2]
[388937337,1759525833023,-150.0,0.0001699,2]
[388937338,1759525833033,-500.0,0.0001699,2]
[388937339,1759525833042,-150.0,0.0001699,2]
[388937340,1759525833051,-150.0,0.0001699,2]
[388937341,1759525833060,-500.0,0.0001699,2]
[388937342,1759525833072,-500.0,0.0001699,2]
[388937343,1759525833083,-558.0,0.0001699,2]
[388937344,1759525833093,-500.0,0.0001699,2]
[388937345,1759525833102,-2585.0,0.0001699,2]
[388937346,1759525833114,-150.0,0.0001699,2]
[388937347,1759525833123,-500.0,0.0001699,2]
[388937348,1759525833132,-150.0,0.0001699,2]
[388937349,1759525833142,-500.0,0.0001699,2]
[388937350,1759525833154,-500.0,0.0001699,2]
[388937351,1759525833163,-150.0,0.0001699,2]
[388937352,1759525833173,-150.0,0.0001699,2]
[388937353,1759525833183,-150.0,0.0001699,2]
[388937354,1759525833192,-150.0,0.0001699,2]
[388937355,1759525833202,-150.0,0.0001699,2]
[388937356,1759525833212,-150.0,0.0001699,2]
[388937357,1759525833222,-500.0,0.0001699,2]
[388937358,1759525833232,-500.0,0.0001699,2]
[388937359,1759525833242,-150.0,0.0001699,2]
[388937360,1759525833252,-500.0,0.0001699,2]
[388937361,1759525833262,-424.24,0.00016991,2]
[388937362,1759525833272,-150.0,0.00016999,2]
[388937363,1759525833282,-262.46,0.00017,2]
[388937364,1759525833292,-159.4120078,0.00017,2]
[388937365,1759525833301,-446.0,0.00017,2]
[388937366,1759525833310,-1000.0,0.00017,2]
[388937367,1759525833319,-804.8491909,0.00017,2]
[388937368,1759525833329,-385.0,0.00017,2]
[388937369,1759525833338,-382.1734,0.00017,2]
[388937370,1759525833348,-786.0,0.00017,2]
[388937371,1759525833357,-151.0,0.00017,2]
[388937372,1759525833367,-153.00981254,0.00017,2]
[388937373,1759525833376,-11517.71838641,0.00017,2]
[388937374,1759525833386,-242.44,0.00017011,2]
[388937375,1759525833395,-230.0,0.00017013,2]
[388937376,1759525833405,-530.0,0.00017015,2]
[388937377,1759525833415,-353.13,0.00017029,2]
[388937378,1759525833424,-4059.8884442,0.0001703,2]
[388937379,1759525833434,-774.0,0.00017038,2]
[388937380,1759525833443,-168.0,0.00017068,2]
[388937381,1759525833453,-1864.0,0.00017083,2]
[388937382,1759525833549,-308.0,0.00017099,2]
[388937383,1759525833559,-174.76,0.000171,2]
[388937384,1759525833568,-412.48,0.00017111,2]
[388937385,1759525833577,-336.0,0.00017119,2]
[388937386,1759525833586,-409.0,0.00017123,2]
[388937387,1759525833595,-1082.90294116,0.00017124,2]
[388937388,1759525833605,-353.13,0.00017166,2]
[388937389,1759525833614,-300.0,0.00017168,2]
[388937390,1759525833623,-300.0,0.00017175,2]
[388937391,1759525833632,-1593.0,0.00017184,2]
[388937392,1759525833642,-269.0,0.00017207,2]
[388937393,1759525833651,-1301.28813,0.0001721,2]
[388937394,1759525833661,-1523.67,0.00017213,2]
[388937395,1759525833670,-150.0,0.0001726,2]
[388937396,1759525833680,-150.0,0.0001726,2]
[388937397,1759525833689,-150.0,0.0001726,2]
[388937398,1759525833699,-150.0,0.0001726,2]
[388937399,1759525833708,-150.0,0.0001726,2]
[388937400,1759525833717,-150.0,0.0001726,2]
[388937401,1759525833727,-150.0,0.0001726,2]
[388937402,1759525833737,-150.0,0.0001726,2]
[388937403,1759525833746,-150.0,0.0001726,2]
[388937404,1759525833756,-191.22909435,0.0001726,2]
[388937405,1759525833765,-150.0,0.0001726,2]
[388937406,1759525833775,-150.0,0.0001726,2]
[388937407,1759525833785,-200.67362487,0.00017264,2]
[388937408,1759525833794,-150.0,0.00017264,2]
[388937409,1759525833804,-255.98096543,0.00017264,2]
[388937410,1759525833813,-500.0,0.00017264,2]
[388937411,1759525833823,-500.0,0.00017264,2]
[388937412,1759525833832,-150.0,0.00017264,2]
[388937413,1759525833841,-500.0,0.00017264,2]
[388937414,1759525833850,-150.0,0.00017264,2]
[388937415,1759525833859,-500.0,0.00017264,2]
[388937416,1759525833868,-150.4533198,0.00017264,2]
[388937417,1759525833877,-150.0,0.00017264,2]
[388937418,1759525833886,-150.94460035,0.00017264,2]
[388937419,1759525833895,-150.0,0.00017264,2]
[388937420,1759525833904,-500.0,0.00017264,2]
[388937421,1759525833912,-152.03903201,0.00017264,2]
[388937422,1759525833921,-150.0,0.00017264,2]
[388937423,1759525833930,-500.0,0.00017264,2]
[388937424,1759525833939,-500.0,0.00017264,2]
[388937425,1759525833948,-500.0,0.00017264,2]
[388937426,1759525833957,-213.7985424,0.00017264,2]
[388937427,1759525833966,-500.0,0.00017264,2]
[388937428,1759525833976,-150.0,0.00017264,2]
[388937429,1759525833985,-150.54937277,0.00017264,2]
[388937430,1759525833994,-500.0,0.00017264,2]
[388937431,1759525834003,-500.0,0.00017264,2]
[388937432,1759525834013,-525.74029189,0.00017264,2]
[388937433,1759525834032,-32.25970811,0.00017264,2]
[388937434,1759525834041,-500.0,0.00017264,2]
[388937435,1759525834050,-2585.0,0.00017264,2]
[388937436,1759525834059,-150.0,0.00017264,2]
[388937437,1759525834071,-500.0,0.00017264,2]
[388937438,1759525834079,-150.0,0.00017264,2]
[388937439,1759525834088,-500.0,0.00017264,2]
[388937440,1759525834097,-614.50320107,0.00017264,2]
[388937441,1759525834107,-157.21239969,0.00017264,2]
[388937442,1759525834116,-150.0,0.00017264,2]
[388937443,1759525834125,-287.11482844,0.00017264,2]
[388937444,1759525834135,-500.0,0.00017264,2]
[388937445,1759525834144,-500.0,0.00017264,2]
[388937446,1759525834153,-500.0,0.00017264,2]
[388937447,1759525834162,-1462.0,0.00017269,2]
[388937448,1759525834171,-4059.88844401,0.00017275,2]
[388937449,1759525834180,-424.24,0.0001729,2]
[388937450,1759525834189,-262.46,0.000173,2]
[388937451,1759525834199,-2000.0,0.000173,2]
[388937452,1759525834208,-242.0,0.00017303,2]
[388937453,1759525834219,-500.0,0.00017314,2]
[388937454,1759525834228,-242.0,0.00017335,2]
[388937455,1759525834237,-168.0,0.00017352,2]
[388937456,1759525834247,-538.0,0.00017353,2]
[388937457,1759525834256,-1082.90294116,0.00017368,2]
[388937458,1759525834265,-1264.0,0.00017378,2]
[388937459,1759525834274,-3400.0,0.00017378,2]
[388937460,1759525834284,-2045.0,0.00017378,2]
[388937461,1759525834293,-1585.0,0.00017378,2]
[388937462,1759525834302,-570.0,0.00017383,2]
[388937463,1759525834311,-1307.0,0.00017383,2]
[388937464,1759525834320,-615.83,0.00017383,2]
[388937465,1759525834330,-815.0,0.00017383,2]
[388937466,1759525834340,-1181.0,0.00017383,2]
[388937467,1759525834351,-4237.0,0.00017383,2]
[388937468,1759525834364,-4115.0,0.00017383,2]
[388937469,1759525834373,-6236.0,0.00017383,2]
[388937470,1759525834382,-900.0,0.00017383,2]
[388937471,1759525834392,-300.0,0.000174,2]
[388937472,1759525834402,-1600.0,0.00017438,2]
[388937473,1759525834412,-1301.28812,0.0001745,2]
[388937474,1759525834423,-3071.0,0.0001747,2]
[388937475,1759525834432,-1523.67,0.00017487,2]
[388937476,1759525834443,-150.0,0.000175,2]
[388937477,1759525834453,-166.66,0.00017515,2]
[388937478,1759525834463,-168.0,0.00017518,2]
[388937479,1759525834474,-242.0,0.00017522,2]
[388937480,1759525834483,-984.0,0.00017523,2]
[388937481,1759525834492,-424.24,0.00017528,2]
[388937482,1759525834502,-150.0,0.00017534,2]
[388937483,1759525834511,-6245.86202211,0.00017536,2]
[388937484,1759525834521,-150.0,0.00017538,2]
[388937485,1759525834531,-500.0,0.00017538,2]
[388937486,1759525834541,-500.0,0.00017538,2]
[388937487,1759525834550,-257.60913702,0.00017538,2]
[388937488,1759525834559,-500.0,0.00017538,2]
[388937489,1759525834568,-150.0,0.00017538,2]
[388937490,1759525834578,-552.7972367,0.00017538,2]
[388937491,1759525834587,-150.0,0.00017538,2]
[388937492,1759525834596,-150.0,0.00017538,2]
[388937493,1759525834605,-503.77140567,0.00017538,2]
[388937494,1759525834614,-150.0,0.00017538,2]
[388937495,1759525834624,-500.0,0.00017538,2]
[388937496,1759525834633,-500.0,0.00017538,2]
[388937497,1759525834642,-500.0,0.00017538,2]
[388937498,1759525834651,-215.36784666,0.00017538,2]
[388937499,1759525834661,-255.29487301,0.00017538,2]
[388937500,1759525834670,-151.12230759,0.00017538,2]
[388937501,1759525834679,-500.0,0.00017538,2]
[388937502,1759525834688,-558.0,0.00017538,2]
[388937503,1759525834698,-500.0,0.00017538,2]
[388937504,1759525834707,-2585.0,0.00017538,2]
[388937505,1759525834718,-150.0,0.00017538,2]
[388937506,1759525834727,-500.0,0.00017538,2]
[388937507,1759525834737,-150.0,0.00017538,2]
[388937508,1759525834747,-500.0,0.00017538,2]
[388937509,1759525834756,-255.97817009,0.00017538,2]
[388937510,1759525834765,-500.0,0.00017538,2]
[388937511,1759525834775,-500.0,0.00017538,2]
[388937512,1759525834785,-500.0,0.00017538,2]
[388937513,1759525834794,-150.0,0.0001758,2]
[388937514,1759525834803,-500.0,0.00017588,2]
[388937515,1759525834813,-836.54,0.00017596,2]
[388937516,1759525834821,-1469.0,0.00017607,2]
[388937517,1759525834831,-1082.90294116,0.00017613,2]
[388937518,1759525834840,-4059.88844401,0.0001762,2]
[388937519,1759525834849,-1489.73748515,0.00017635,5]
[388937520,1759525834858,-150.0,0.00017636,2]
[388937521,1759525834867,-788.0,0.00017636,2]
[388937522,1759525834877,-150.0,0.00017644,2]
[388937523,1759525834886,-5000.0,0.00017681,2]
[388937524,1759525834896,-161.30106101,0.00017681,2]
[388937525,1759525834905,-1267.0,0.00017692,2]
[388937526,1759525834915,-198.77672055,0.00017699,2]
[388937527,1759525834924,-1301.28813,0.000177,2]
[388937528,1759525834934,-6245.86202207,0.00017707,2]
[388937529,1759525834943,-184.87227333,0.00017709,2]
[388937530,1759525834953,-500.0,0.00017709,2]
[388937531,1759525834962,-317.70053255,0.00017709,2]
[388937532,1759525834972,-190.14625011,0.00017709,2]
[388937533,1759525834981,-173.12820348,0.00017709,2]
[388937534,1759525834990,-525.12616571,0.00017709,2]
[388937535,1759525835000,-150.0,0.0001774,2]
[388937536,1759525835009,-150.0,0.0001774,2]
[388937537,1759525835018,-150.0,0.0001774,2]
[388937538,1759525835027,-150.0,0.0001774,2]
[388937539,1759525835037,-198.77672055,0.00017753,2]
[388937540,1759525835046,-1523.67,0.00017761,2]
[388937541,1759525835056,-424.24,0.00017771,2]
[388937542,1759525835065,-2444.90072231,0.00017778,2]
[388937543,1759525835079,-151.0,0.00017778,2]
[388937544,1759525835088,-931.66259669,0.00017781,7]
[388937545,1759525835113,-59905.1370238,0.00017781,7]
[388937546,1759525835124,-3691.51323709,0.00017781,7]
[388937571,1759525837903,-621.0,0.00017383,2]
[388937573,1759525837913,-2918.58506686,0.00017781,7]
[388937575,1759525837924,-32390.85207556,0.00017781,7]
[388937577,1759525837932,-12531.98481363,0.00017781,7]
[388937579,1759525837945,-859.17381,0.00017781,7]
[388937582,1759525837964,-2157.80385771,0.00017781,7]
[388937586,1759525837992,-7966.2527434,0.00017781,7]
[388937744,1759525839490,-1865.06417053,0.00017781,7]
[388937750,1759525839548,-296.88,0.00017,2]
[388937752,1759525839558,-12749.40235723,0.00017781,7]
[388937755,1759525839570,-1139.63643027,0.00017781,7]
[388937757,1759525839582,-1583.66575278,0.00017781,7]
[388937766,1759525839666,-5968.54494945,0.00017781,7]
[388937768,1759525839675,-370.55283938,0.0001779,7]
[388937770,1759525839685,-196.58,0.000178,2]
[388937772,1759525839695,-150.0,0.00017808,2]
[388937774,1759525839705,-150.0,0.00017812,2]
[388937776,1759525839715,-212.26083857,0.00017812,2]
[388937778,1759525839725,-500.0,0.00017812,2]
[388937780,1759525839735,-500.0,0.00017812,2]
[388937782,1759525839745,-150.0,0.00017812,2]
[388937784,1759525839754,-150.0,0.00017812,2]
[388937786,1759525839763,-150.0,0.00017812,2]
[388937788,1759525839773,-500.0,0.00017812,2]
[388937790,1759525839783,-200.25391666,0.00017812,2]
[388937792,1759525839793,-500.0,0.00017812,2]
[388937794,1759525839802,-319.0,0.00017812,2]
[388937796,1759525839812,-558.0,0.00017812,2]
[388937798,1759525839821,-500.0,0.00017812,2]
[388937800,1759525839832,-2585.0,0.00017812,2]
[388937802,1759525839841,-150.0,0.00017812,2]
[388937804,1759525839851,-500.0,0.00017812,2]
[388937807,1759525839860,-150.0,0.00017812,2]
[388937810,1759525839871,-500.0,0.00017812,2]
[388937813,1759525839881,-500.0,0.00017812,2]
[388937816,1759525839890,-500.0,0.00017812,2]
[388937818,1759525839900,-500.0,0.00017812,2]
[388937820,1759525839909,-168.0,0.00017831,2]
[388937821,1759525839918,-1090.0,0.00017834,2]
[388937823,1759525839927,-198.77672055,0.00017836,2]
[388937825,1759525839938,-1082.90294116,0.00017857,2]
[388937827,1759525839948,-500.0,0.00017862,2]
[388937829,1759525839958,-6245.86202207,0.00017879,2]
[388937831,1759525839967,-242.44,0.00017881,2]
[388937833,1759525839976,-150.0,0.000179,2]
[388937835,1759525839986,-150.0,0.000179,2]
[388937837,1759525839995,-150.0,0.000179,2]
[388937839,1759525840004,-393.76610646,0.000179,2]
[388937841,1759525840013,-400.0,0.000179,6]
[388937843,1759525840024,-198.77672055,0.00017918,2]
[388937845,1759525840033,-1600.0,0.00017931,2]
[388937847,1759525840043,-1301.28812,0.0001795,2]
[388937886,1759525840411,-161.30106101,0.0001796,2]
[388937891,1759525840460,-4059.88844401,0.00017964,2]
[388937893,1759525840470,-198.77672055,0.00017973,2]
[388937895,1759525840480,-150.0,0.00017979,2]
[388937897,1759525840489,-400.0,0.0001799,2]
[388937899,1759525840500,-370.73035175,0.00018,2]
[388937901,1759525840509,-2682.63860903,0.00018,2]
[388937903,1759525840519,-150.0,0.00018027,2]
[388937905,1759525840527,-2000.0,0.00018031,2]
[388937907,1759525840536,-500.0,0.00018031,2]
[388937909,1759525840545,-277.72134061,0.00018032,2]
[388937911,1759525840554,-1523.67,0.00018035,2]
[388937913,1759525840563,-500.0,0.0001805,2]
[388937914,1759525840572,-6245.86202207,0.0001805,2]
[388937916,1759525840581,-198.77672055,0.00018055,2]
[388937918,1759525840591,-166.66,0.00018057,2]
[388937920,1759525840600,-407.50012038,0.00018069,7]
[388937922,1759525840610,-500.0,0.00018073,2]
[388937924,1759525840619,-172.40369021,0.00018073,2]
[388937926,1759525840626,-500.0,0.00018073,2]
[388937928,1759525840636,-150.0,0.00018082,2]
[388937929,1759525840646,-151.42890001,0.00018086,2]
[388937930,1759525840655,-519.3417204,0.00018086,2]
[388937931,1759525840664,-500.0,0.00018086,2]
[388937932,1759525840673,-150.0,0.00018086,2]
[388937933,1759525840682,-500.0,0.00018086,2]
[388937934,1759525840692,-558.0,0.00018086,2]
[388937935,1759525840701,-500.0,0.00018086,2]
[388937936,1759525840710,-2585.0,0.00018086,2]
[388937937,1759525840720,-150.0,0.00018086,2]
[388937938,1759525840729,-500.0,0.00018086,2]
[388937939,1759525840738,-150.0,0.00018086,2]
[388937940,1759525840747,-500.0,0.00018086,2]
[388937941,1759525840756,-203.34776479,0.00018086,2]
[388937942,1759525840765,-500.0,0.00018086,2]
[388937943,1759525840774,-500.0,0.00018086,2]
[388937944,1759525840784,-250000.0,0.000181,2]
[388937945,1759525840793,-56741.63273732,0.000181,2]
[388938132,1759525842586,-300.0,0.0001778,2]
[388938134,1759525842595,-14532.3132,0.000181,2]
[388938433,1759525845423,-272.57275658,0.00018,2]
[388938436,1759525845432,-20595.90733769,0.000181,2]
[388939443,1759525855493,-3281.72674288,0.000181,2]
[388939448,1759525855526,-250.0,0.00017,2]
[388939450,1759525855535,-85188.11045196,0.000181,2]
[388939452,1759525855544,-1755.23512855,0.000181,2]
[388939454,1759525855553,-1082.90294116,0.00018101,2]
[388939456,1759525855562,-198.77672055,0.0001811,2]
[388939458,1759525855571,-500.0,0.00018135,2]
[388939460,1759525855580,-370.7303517,0.0001818,2]
[388939462,1759525855589,-198.77672055,0.00018192,2]
[388939464,1759525855598,-300.0,0.00018192,2]
[388939466,1759525855607,-150.0,0.00018219,2]
[388939468,1759525855616,-150.0,0.00018219,2]
[388939470,1759525855625,-150.0,0.00018219,2]
[388939472,1759525855634,-150.0,0.00018219,2]
[388939474,1759525855643,-150.0,0.00018219,2]
[388939476,1759525855653,-150.0,0.00018219,2]
[388939478,1759525855662,-6245.86202207,0.00018221,2]
[388939480,1759525855672,-161.30106101,0.0001824,2]
[388939482,1759525855681,-198.77672055,0.00018274,2]
[388939484,1759525855691,-1680.0,0.00018283,2]
[388939486,1759525855700,-250.0,0.00018283,2]
[388939488,1759525855709,-370.55283938,0.000183,7]
[388939490,1759525855718,-800.0,0.000183,6]
[388939492,1759525855728,-1523.67,0.00018309,2]
[388939494,1759525855737,-150.0,0.00018315,2]
[388939496,1759525855745,-195.0,0.00018315,2]
[388939498,1759525855754,-500.0,0.00018315,2]
[388939500,1759525855763,-2000.0,0.00018315,2]
[388939502,1759525855772,-300.0,0.00018315,2]
[388939504,1759525855781,-300.0,0.00018315,2]
[388939506,1759525855790,-150.31127197,0.00018315,4]
[388939508,1759525855799,-150.0,0.00018315,2]
[388939509,1759525855808,-500.0,0.00018315,2]
[388939511,1759525855818,-250.0,0.00018315,2]
[388939514,1759525855827,-195.0,0.00018315,2]
[388939515,1759525855836,-195.0,0.00018316,2]
[388939517,1759525855846,-300.0,0.00018316,2]
[388939519,1759525855855,-2000.0,0.00018316,2]
[388939521,1759525855864,-300.0,0.00018316,2]
[388939523,1759525855873,-2500.0,0.00018316,2]
[388939526,1759525855883,-2500.0,0.00018316,2]
[388939528,1759525855892,-198.77672055,0.00018329,2]
[388939530,1759525855903,-1082.90294116,0.00018345,2]
[388939532,1759525855912,-150.0,0.00018356,2]
[388939534,1759525855921,-21422.59,0.00018356,2]
[388939536,1759525855931,-370.7303517,0.00018359,2]
[388939538,1759525855940,-378.43813652,0.0001836,2]
[388939540,1759525855949,-500.0,0.0001836,2]
[388939542,1759525855958,-558.0,0.0001836,2]
[388939544,1759525855967,-500.0,0.0001836,2]
[388939546,1759525855976,-2585.0,0.0001836,2]
[388939548,1759525855986,-151.87650554,0.0001836,2]
[388939549,1759525855995,-500.0,0.0001836,2]
[388939551,1759525856004,-218.05359463,0.0001836,2]
[388939553,1759525856013,-500.0,0.0001836,2]
[388939555,1759525856022,-150.0,0.0001836,2]
[388939557,1759525856031,-350.0,0.0001836,2]
[388939559,1759525856040,-500.0,0.0001836,2]
[388939561,1759525856049,-407.50012038,0.00018361,8]
[388939563,1759525856059,-242.44,0.00018391,2]
[388939565,1759525856069,-6245.86202207,0.00018393,2]
[388939568,1759525856084,-836.54,0.00018396,2]
[388939570,1759525856093,-1111.28,0.000184,7]
[388939572,1759525856102,-1300.0,0.000184,6]
[388939574,1759525856113,-500.0,0.00018409,2]
[388939576,1759525856122,-150.0,0.00018411,2]
[388939578,1759525856131,-198.77672055,0.00018411,2]
[388939580,1759525856141,-150.0,0.00018459,2]
[388939581,1759525856151,-198.77672055,0.00018466,2]
[388939583,1759525856159,-45314.95890645,0.000185,2]
[388939585,1759525856168,-1008.0,0.000185,3]
[388939587,1759525856178,-1000.0,0.000185,3]
[388939589,1759525856187,-1000.0,0.000185,3]
[388939591,1759525856195,-1000.0,0.000185,3]
[388939593,1759525856204,-1000.0,0.000185,3]
[388939595,1759525856214,-1000.0,0.000185,3]
[388939597,1759525856223,-1000.0,0.000185,3]
[388939599,1759525856232,-1000.0,0.000185,3]
[388939600,1759525856241,-1000.0,0.000185,3]
[388939601,1759525856250,-1000.0,0.000185,3]
[388939602,1759525856259,-1000.0,0.000185,3]
[388939603,1759525856267,-370.55283938,0.000185,3]
[388939604,1759525856276,-1700.0,0.000185,6]
[388939605,1759525856285,-161.30106101,0.00018519,2]
[388939606,1759525856294,-150.0,0.00018539,2]
[388939607,1759525856303,-150.0,0.00018539,2]
[388939608,1759525856312,-150.0,0.00018539,2]
[388939609,1759525856320,-370.7303517,0.00018539,2]
[388939610,1759525856330,-300.0,0.00018544,2]
[388939611,1759525856339,-6245.86202207,0.00018564,2]
[388939613,1759525856348,-1523.67,0.00018583,2]
[388939615,1759525856357,-1082.90294116,0.0001859,2]
[388939617,1759525856366,-166.66,0.000186,2]
[388939619,1759525856375,-2200.0,0.000186,6]
[388939621,1759525856384,-1000.0,0.00018621,2]
[388939623,1759525856393,-150.0,0.0001863,2]
[388939625,1759525856403,-1000.0,0.0001863,2]
[388939627,1759525856411,-500.0,0.00018634,2]
[388939629,1759525856421,-558.0,0.00018634,2]
[388939631,1759525856431,-500.0,0.00018634,2]
[388939633,1759525856440,-2585.0,0.00018634,2]
[388939635,1759525856450,-500.0,0.00018634,2]
[388939637,1759525856458,-200.0,0.00018634,2]
[388939639,1759525856468,-500.0,0.00018634,2]
[388939641,1759525856477,-407.50012038,0.00018653,9]
[388939643,1759525856486,-500.0,0.00018683,2]
[388939645,1759525856496,-196.58,0.0001869,2]
[388939647,1759525856506,-150.0,0.00018699,2]
[388939649,1759525856515,-150.0,0.00018699,2]
[388939651,1759525856523,-150.0,0.00018699,2]
[388939653,1759525856532,-150.0,0.00018699,2]
[388939655,1759525856541,-400.0,0.000187,6]
[388939657,1759525856550,-370.7303517,0.00018719,2]
[388939659,1759525856560,-6245.86202207,0.00018735,2]
[388939661,1759525856569,-1090.0,0.00018773,2]
[388939663,1759525856579,-150.0,0.00018795,2]
[388939665,1759525856587,-161.30106101,0.00018799,2]
[388939667,1759525856598,-9347.37022567,0.000188,2]
[388939669,1759525856607,-1168.06,0.000188,8]
[388939671,1759525856616,-280.82,0.000188,8]
[388939673,1759525856625,-400.0,0.000188,6]
[388939675,1759525856634,-1082.90294116,0.00018834,2]
[388939677,1759525856643,-1523.67,0.00018857,2]
[388939679,1759525856651,-150.0,0.00018858,2]
[388939681,1759525856661,-165.10686751,0.00018898,2]
[388939683,1759525856670,-370.7303517,0.00018898,2]
[388939685,1759525856680,-263.37091611,0.000189,7]
[388939687,1759525856689,-283.61868046,0.000189,2]
[388939689,1759525856698,-400.0,0.000189,6]
[388939691,1759525856707,-150.0,0.00018904,2]
[388939693,1759525856716,-6245.86202207,0.00018907,2]
[388939695,1759525856725,-500.0,0.00018908,2]
[388939697,1759525856734,-558.0,0.00018908,2]
[388939699,1759525856743,-500.0,0.00018908,2]
[388939701,1759525856752,-2585.0,0.00018908,2]
[388939703,1759525856761,-500.0,0.00018908,2]
[388939705,1759525856770,-500.0,0.00018908,2]
[388939707,1759525856779,-150.0,0.00018938,2]
[388939709,1759525856788,-407.50012038,0.00018944,11]
[388939711,1759525856796,-242.94151723,0.00018947,2]
[388939713,1759525856805,-2631.95038203,0.00018948,2]
[388939715,1759525856814,-14682.81505415,0.00018951,2]
[388939717,1759525856823,-959.7241651,0.00018952,2]
[388939719,1759525856832,-546.31926746,0.00018952,2]
[388939721,1759525856841,-958.8547577,0.00018954,2]
[388939723,1759525856850,-500.0,0.00018957,2]
[388939724,1759525856859,-1516.63464281,0.0001896,2]
[388939727,1759525856868,-160.7132125,0.00018961,2]
[388939728,1759525856878,-242.94151723,0.00018962,2]
[388939730,1759525856887,-6145.49013524,0.00018963,2]
[388939732,1759525856897,-959.7241651,0.00018965,2]
[388939734,1759525856907,-1581.69321527,0.00018966,2]
[388939737,1759525856916,-16797.81870987,0.00018968,2]
[388939738,1759525856925,-161.62,0.00018969,2]
[388939740,1759525856934,-242.94151723,0.00018971,2]
[388939742,1759525856942,-171.70529094,0.00018973,2]
[388939744,1759525856952,-1581.69321527,0.00018974,2]
[388939746,1759525856961,-1516.63464281,0.00018975,2]
[388939748,1759525856970,-75381.01464888,0.00018978,2]
[388939755,1759525857021,-400.5,0.00018978,2]
[388941487,1759525888694,5513.0,0.000142,5]
[388941488,1759525888901,3669.0,0.000141,3]
[388941489,1759525919241,2000.0,0.00016602,2]
[388941490,1759525920311,212.029,0.00016602,2]
[388941491,1759525920572,1000.0,0.00016602,2]
[388941492,1759525920672,485.7,0.00016602,2]
[388941493,1759525987586,-554.55494235,0.00016602,2]